fUSD/lending_fUSD_20240412
["ID","MTS","AMOUNT","RATE_DAILY","PERIOD"]
[322344785,1712956753196,1211.59,0.00047671,31]
[322344786,1712956753241,500.0,0.00048767,31]
[322344787,1712956753284,500.0,0.00049041,31]
[322344788,1712956753325,1211.59,0.00047945,31]
[322344789,1712956753372,500.0,0.00049041,31]
[322344790,1712956753543,1211.59,0.00048219,31]
[322344791,1712956753596,500.0,0.00049315,120]
[322344792,1712956753644,500.0,0.00049315,120]
[322344793,1712956753823,1211.59,0.00048493,31]
[322344794,1712956753945,500.0,0.00046575,31]
[322344795,1712956754129,1211.59,0.00048767,31]
[322344796,1712956754207,500.0,0.00046849,31]
[322344797,1712956754434,1211.59,0.00049041,31]
[322344798,1712956754485,500.0,0.00047123,31]
[322344799,1712956754730,1211.59,0.00049315,120]
[322344800,1712956754769,500.0,0.00047397,31]
[322344801,1712956755006,500.0,0.00047671,31]
[322344802,1712956755269,500.0,0.00047945,31]
[322344803,1712956755537,500.0,0.00048219,31]
[322344804,1712956755849,500.0,0.00048493,31]
[322344805,1712956755972,500.0,0.00046575,31]
[322344806,1712956756062,500.0,0.00046575,31]
[322344807,1712956756105,500.0,0.00048767,31]
[322344808,1712956756143,722.88,0.00046575,31]
[322344809,1712956756181,500.0,0.00046575,31]
[322344810,1712956756254,500.0,0.00046849,31]
[322344811,1712956756355,500.0,0.00049041,31]
[322344812,1712956756430,500.0,0.00046849,31]
[322344813,1712956756506,1000.0,0.00046575,30]
[322344814,1712956756549,500.0,0.00047123,31]
[322344815,1712956756606,250.98,0.00049315,120]
[322344816,1712956756718,722.88,0.00046849,31]
[322344817,1712956756757,262.83201557,0.00046849,30]
[322344818,1712956756996,722.88,0.00047123,31]
[322344819,1712956757035,500.0,0.00047123,31]
[322344820,1712956757287,722.88,0.00047397,31]
[322344821,1712956757397,500.0,0.00046575,31]
[322344822,1712956757647,500.0,0.00046849,31]
[322344823,1712956757832,722.88,0.00047671,31]
[322344824,1712956757929,500.0,0.00047123,31]
[322344825,1712956757994,730.01,0.00046575,31]
[322344826,1712956758064,500.0,0.00046575,31]
[322344827,1712956758114,722.88,0.00047945,31]
[322344828,1712956758220,500.0,0.00047397,31]
[322344829,1712956758262,730.01,0.00046849,31]
[322344830,1712956758350,500.0,0.00046849,31]
[322344831,1712956758405,722.88,0.00048219,31]
[322344832,1712956758510,362.95,0.00047671,31]
[322344833,1712956758549,730.01,0.00047123,31]
[322344834,1712956758782,500.0,0.00047123,31]
[322344835,1712956758847,730.01,0.00047397,31]
[322344836,1712956758892,722.88,0.00048493,31]
[322344837,1712956758999,500.0,0.00047397,31]
[322344838,1712956759129,730.01,0.00047671,31]
[322344839,1712956759171,722.88,0.00048767,31]
[322344840,1712956759258,500.0,0.00047671,31]
[322344841,1712956759411,722.88,0.00049041,31]
[322344842,1712956759553,500.0,0.00047945,31]
[322344843,1712956759593,500.0,0.00046575,31]
[322344844,1712956759681,722.88,0.00049315,120]
[322344845,1712956759733,730.01,0.00047945,31]
[322344846,1712956759814,500.0,0.00048219,31]
[322344847,1712956759851,500.0,0.00046575,31]
[322344848,1712956760018,730.01,0.00048219,31]
[322344849,1712956760102,500.0,0.00048493,31]
[322344850,1712956760309,500.0,0.00046575,31]
[322344851,1712956760349,730.01,0.00048493,31]
[322344852,1712956760387,500.0,0.00048767,31]
[322344853,1712956760484,759.12,0.00046575,31]
[322344854,1712956760603,730.01,0.00048767,31]
[322344855,1712956760644,500.0,0.00049041,31]
[322344856,1712956760778,759.12,0.00046849,31]
[322344857,1712956760857,730.01,0.00049041,31]
[322344858,1712956760912,500.0,0.00049315,120]
[322344859,1712956761071,512.13007944,0.00046575,31]
[322344860,1712956761111,759.12,0.00047123,31]
[322344861,1712956761167,730.01,0.00049315,120]
[322344862,1712956761255,500.0,0.00046575,31]
[322344863,1712956761358,759.12,0.00047397,31]
[322344864,1712956761788,500.77488151,0.00046575,31]
[322344865,1712956761997,4405.0,0.00046575,31]
[322344866,1712956762034,759.12,0.00047671,31]
[322344867,1712956762109,539.92921783,0.00046575,31]
[322344868,1712956762270,759.12,0.00047945,31]
[322344869,1712956762548,759.12,0.00048219,31]
[322344870,1712956762609,4405.0,0.00046849,31]
[322344871,1712956762806,759.12,0.00048493,31]
[322344872,1712956762882,4405.0,0.00047123,31]
[322344873,1712956762989,500.0,0.00046575,31]
[322344874,1712956763290,4405.0,0.00047397,31]
[322344875,1712956763340,500.0,0.00046849,31]
[322344876,1712956763416,759.12,0.00048767,31]
[322344877,1712956763455,4405.0,0.00047671,31]
[322344878,1712956763507,500.0,0.00046575,31]
[322344879,1712956763547,500.0,0.00047123,31]
[322344880,1712956763718,759.12,0.00049041,31]
[322344881,1712956763761,500.0,0.00046575,31]
[322344882,1712956763897,2019.2646,0.00049041,45]
[322344883,1712956763989,759.12,0.00049315,120]
[322344884,1712956764031,4405.0,0.00047945,31]
[322344885,1712956764471,500.0,0.00046575,31]
[322344886,1712956764512,4405.0,0.00048219,31]
[322344887,1712956764761,500.0,0.00046849,31]
[322344888,1712956764818,4405.0,0.00048493,31]
[322344889,1712956765062,4405.0,0.00048767,31]
[322344890,1712956765246,2235.59,0.00046575,31]
[322344891,1712956765339,500.0,0.00047123,31]
[322344892,1712956765564,2235.59,0.00046849,31]
[322344893,1712956765625,500.0,0.00047397,31]
[322344894,1712956765666,500.0,0.00046575,31]
[322344895,1712956765706,4405.0,0.00049041,31]
[322344896,1712956765744,500.0,0.00046575,31]
[322344897,1712956765926,500.0,0.00046849,31]
[322344898,1712956765965,500.0,0.00046575,31]
[322344899,1712956766002,4405.0,0.00049315,120]
[322344900,1712956766043,500.0,0.00046849,31]
[322344901,1712956766169,500.0,0.00047123,31]
[322344902,1712956766207,2235.59,0.00047123,31]
[322344903,1712956766251,500.0,0.00046849,31]
[322344904,1712956766292,500.0,0.00047671,31]
[322344905,1712956766441,500.0,0.00047123,31]
[322344906,1712956766478,500.0,0.00047397,31]
[322344907,1712956766517,2235.59,0.00047397,31]
[322344908,1712956766705,500.0,0.00047671,31]
[322344909,1712956766744,2235.59,0.00047671,31]
[322344910,1712956766829,500.0,0.00047945,31]
[322344911,1712956766992,500.0,0.00047945,31]
[322344912,1712956767039,2235.59,0.00047945,31]
[322344913,1712956767096,500.0,0.00048219,31]
[322344914,1712956767265,500.0,0.00046575,31]
[322344915,1712956767301,500.0,0.00048219,31]
[322344916,1712956767409,500.0,0.00048493,31]
[322344917,1712956767557,500.0,0.00048493,31]
[322344918,1712956767618,2235.59,0.00048219,31]
[322344919,1712956767688,500.0,0.00048767,31]
[322344920,1712956767827,500.0,0.00048767,31]
[322344921,1712956767969,500.0,0.00049041,31]
[322344922,1712956768008,2235.59,0.00048493,31]
[322344923,1712956768105,500.0,0.00049041,31]
[322344924,1712956768233,500.0,0.00049315,120]
[322344925,1712956768399,188.42,0.00049315,120]
[322344926,1712956768538,500.0,0.00046575,31]
[322344927,1712956768583,500.0,0.00046575,31]
[322344928,1712956768634,2235.59,0.00048767,31]
[322344929,1712956768806,500.0,0.00046849,31]
[322344930,1712956768870,500.0,0.00046849,31]
[322344931,1712956768909,500.0,0.00046575,31]
[322344932,1712956768947,2235.59,0.00049041,31]
[322344933,1712956769056,500.0,0.00047123,31]
[322344934,1712956769128,500.0,0.00046849,31]
[322344935,1712956769190,2235.59,0.00049315,120]
[322344936,1712956769317,500.0,0.00047397,31]
[322344937,1712956769408,500.0,0.00047123,31]
[322344938,1712956769604,500.0,0.00047671,31]
[322344939,1712956769671,500.0,0.00047397,31]
[322344940,1712956770183,500.0,0.00047945,31]
[322344941,1712956770269,500.0,0.00047671,31]
[322344942,1712956770457,131.23923789,0.00046575,31]
[322344943,1712956935663,500.0,0.0003,120]
[322344944,1712956967325,250.0,0.00021,3]
[322344945,1712956968422,300.0,0.00023,3]
[322344946,1712956969521,350.0,0.00025,3]
[322344949,1712957079279,162.09,0.00021918,2]
[322344955,1712957339269,500.0,0.0003,30]
[322344977,1712957432362,-400.0,0.00027,3]
[322344978,1712957432373,-1000.0,0.00027396,2]
[322344979,1712957432383,-159.25,0.00027397,2]
[322344980,1712957432393,-208.11,0.00027397,2]
[322344981,1712957432403,-162.79,0.00027397,2]
[322344982,1712957432414,-467.9999329,0.00027438,2]
[322344983,1712957432423,-154.98813121,0.0002746,2]
[322344984,1712957432434,-1471.73797299,0.0002755,2]
[322344985,1712957432444,-155.9196356,0.00027702,2]
[322344986,1712957432454,-540.82,0.0002787,2]
[322344987,1712957432464,-237.04533752,0.00027998,2]
[322344988,1712957432474,-150.0,0.00027999,2]
[322344989,1712957432486,-20180.30698704,0.00028,2]
[322344990,1712957432496,-499.99,0.00028,2]
[322344991,1712957432508,-152.58356749,0.00028158,2]
[322344992,1712957432519,-155.9196356,0.00028217,2]
[322344993,1712957432529,-192.40638411,0.0002836,2]
[322344994,1712957432539,-156.66547669,0.00028464,2]
[322344995,1712957432549,-156.24543451,0.00028655,2]
[322344996,1712957432559,-156.24543451,0.00028767,2]
[322344997,1712957432570,-363.20661453,0.00029,2]
[322344998,1712957432580,-561.76868784,0.00029,2]
[322344999,1712957432590,-4696.69565683,0.00029,2]
[322345000,1712957432603,-17574.27336,0.00029,2]
[322345001,1712957432616,-5681.00912494,0.00029,2]
[322345002,1712957432628,-2168.4403437,0.00029,2]
[322345003,1712957432641,-1064.01999944,0.00029,2]
[322345004,1712957432659,-376.59393509,0.00029,2]
[322345005,1712957432971,-277.09441351,0.00029,3]
[322345006,1712957432985,-172.90558649,0.00029,3]
[322345007,1712957432995,-154.98813121,0.00029162,2]
[322345008,1712957433004,-1000.0,0.00029347,2]
[322345009,1712957433014,-289.71435498,0.000295,3]
[322345010,1712957433023,-428.55,0.00029714,2]
[322345011,1712957433032,-766.19917842,0.0002972,5]
[322345012,1712957433060,-510.04241426,0.0002972,5]
[322345013,1712957433071,-2723.75840732,0.0002972,5]
[322345014,1712957433080,-3944.71016495,0.0002972,2]
[322345015,1712957433153,-1608.3385607,0.0002972,2]
[322345016,1712957433164,-2291.30000015,0.0002972,2]
[322345017,1712957433176,-811.61511842,0.0002972,2]
[322345018,1712957433188,-15244.03615578,0.0002972,2]
[322345019,1712957433197,-250.0,0.0002974,2]
[322345020,1712957433207,-3426.91,0.00029743,2]
[322345021,1712957433216,-11023.53,0.00029766,2]
[322345022,1712957433226,-250.0,0.00029778,2]
[322345023,1712957433235,-2875.15,0.00029814,2]
[322345024,1712957433245,-167.0,0.00029972,2]
[322345025,1712957433254,-405.6958138,0.0003,4]
[322345026,1712957433263,-335.87493834,0.0003,4]
[322345027,1712957433273,-19296.85949425,0.0003,4]
[322345028,1712957433283,-6941.74361707,0.0003,2]
[322345029,1712957433292,-3931.64788183,0.0003,2]
[322345030,1712957433302,-455.7135509,0.0003,2]
[322345031,1712957433312,-500.0,0.0003,3]
[322345032,1712957433323,-156.66547669,0.00030003,7]
[322345034,1712957433333,-163.86,0.00030011,2]
[322345035,1712957433343,-152.58356749,0.00030068,7]
[322345036,1712957433353,-156.66547669,0.00030084,7]
[322345037,1712957433363,-252.99,0.00030086,2]
[322345038,1712957433372,-5000.0,0.000301,4]
[322345039,1712957433382,-250.0,0.00030122,2]
[322345040,1712957433393,-540.82,0.00030134,2]
[322345041,1712957433405,-160.46,0.00030219,2]
[322345042,1712957433414,-160.46,0.00030231,2]
[322345043,1712957433425,-160.46,0.00030244,2]
[322345044,1712957433435,-160.46,0.00030257,2]
[322345045,1712957433445,-160.46,0.00030269,2]
[322345046,1712957433455,-160.46,0.00030282,2]
[322345047,1712957433465,-152.58356749,0.00030284,7]
[322345048,1712957433475,-160.46,0.00030294,2]
[322345049,1712957433486,-160.46,0.00030307,2]
[322345050,1712957433496,-160.46,0.0003032,2]
[322345051,1712957433507,-160.46,0.00030332,2]
[322345052,1712957433517,-160.46,0.00030345,2]
[322345053,1712957433528,-160.46,0.00030357,2]
[322345054,1712957433538,-160.46,0.0003037,2]
[322345055,1712957433549,-173.07,0.00030475,2]
[322345056,1712957433559,-155.9196356,0.00030681,7]
[322345057,1712957433570,-158.56529912,0.000307,7]
[322345058,1712957433581,-154.98813121,0.00030742,7]
[322345059,1712957433591,-163.86,0.00030793,2]
[322345060,1712957433602,-6270.45245462,0.00030988,2]
[322345061,1712957433613,-490.8694946,0.00031,4]
[322345062,1712957433623,-500.0,0.00031,3]
[322345063,1712957433634,-159.17,0.00031088,2]
[322345064,1712957433645,-167.0,0.00031209,2]
[322345065,1712957433657,-157.17590103,0.00031444,7]
[322345066,1712957433668,-3121.78729203,0.00031566,2]
[322345067,1712957433677,-163.86,0.00031575,2]
[322345068,1712957433688,-177.46,0.00031644,2]
[322345069,1712957433699,-155.9196356,0.00031755,7]
[322345070,1712957433709,-332.19736298,0.00032,4]
[322345071,1712957433720,-156.66547669,0.00032011,7]
[322345072,1712957433731,-158.56529912,0.00032083,7]
[322345073,1712957433741,-158.56529912,0.0003219,7]
[322345074,1712957433751,-161.95655027,0.00032224,7]
[322345075,1712957433761,-540.82,0.00032397,2]
[322345076,1712957433772,-167.0,0.00032445,2]
[322345077,1712957433781,-159.17,0.00032458,2]
[322345078,1712957433791,-528.4034,0.00032503,2]
[322345079,1712957433803,-2875.15,0.00032553,2]
[322345080,1712957433812,-152.58356749,0.00032559,7]
[322345081,1712957433823,-6832.22,0.00032603,2]
[322345082,1712957433833,-768.5,0.00032603,2]
[322345083,1712957433843,-154.98813121,0.00032612,7]
[322345084,1712957433853,-180.0,0.00032687,2]
[322345085,1712957433863,-152.58356749,0.00032832,7]
[322345086,1712957433872,-525.0,0.00032876,2]
[322345087,1712957433882,-546.0,0.00032876,2]
[322345088,1712957433892,-300.0,0.00032876,2]
[322345089,1712957433902,-326.62,0.00032876,2]
[322345090,1712957433911,-152.26,0.00032877,2]
[322345091,1712957433921,-162.09,0.00032877,2]
[322345092,1712957433935,-154.52231468,0.00032911,7]
[322345093,1712957433944,-550.0,0.00033,3]
[322345094,1712957433954,-2515.0,0.00033,2]
[322345095,1712957433964,-1000.0,0.00033016,2]
[322345096,1712957433973,-208.11,0.00033165,2]
[322345097,1712957433983,-156.17870577,0.0003319,7]
[322345098,1712957433992,-6270.45245458,0.00033226,2]
[322345099,1712957434002,-155.9196356,0.00033377,7]
[322345100,1712957434012,-167.0,0.00033682,2]
[322345101,1712957434022,-882.79,0.000338,2]
[322345102,1712957434032,-882.79,0.000338,2]
[322345103,1712957434042,-882.79,0.000338,2]
[322345104,1712957434051,-882.79,0.000338,2]
[322345105,1712957434061,-882.79,0.000338,2]
[322345106,1712957434071,-882.79,0.000338,2]
[322345107,1712957434083,-882.79,0.000338,2]
[322345108,1712957434093,-882.79,0.000338,2]
[322345109,1712957434102,-882.79,0.000338,2]
[322345110,1712957434112,-882.79,0.000338,2]
[322345111,1712957434122,-882.79,0.000338,2]
[322345112,1712957434131,-882.79,0.000338,2]
[322345113,1712957434141,-882.79,0.000338,2]
[322345114,1712957434150,-882.79,0.000338,2]
[322345115,1712957434160,-882.79,0.000338,2]
[322345116,1712957434169,-335.39030206,0.000338,2]
[322345117,1712957434448,-547.39969794,0.000338,2]
[322345118,1712957434458,-427.80366856,0.000338,2]
[322345119,1712957434470,-454.98633144,0.000338,2]
[322345120,1712957434480,-882.79,0.000338,2]
[322345121,1712957434489,-882.79,0.000338,2]
[322345122,1712957434499,-882.79,0.000338,2]
[322345123,1712957434510,-155.18,0.000338,2]
[322345124,1712957434521,-155.18,0.000338,2]
[322345125,1712957434531,-155.18,0.000338,2]
[322345126,1712957434541,-525.0,0.00034109,2]
[322345127,1712957434551,-546.0,0.00034109,2]
[322345128,1712957434560,-153.76020684,0.00034176,7]
[322345129,1712957434570,-971.66806872,0.00034247,2]
[322345130,1712957434583,-28.33193128,0.00034247,2]
[322345131,1712957434593,-155.9196356,0.00034252,7]
[322345132,1712957434603,-540.82,0.00034661,2]
[322345133,1712957434613,-152.58356749,0.00034785,7]
[322345134,1712957434622,-152.58356749,0.0003486,7]
[322345135,1712957434632,-167.0,0.00034919,2]
[322345136,1712957434641,-1013.5554958,0.00034999,2]
[322345137,1712957434657,-1615.5345042,0.00034999,2]
[322345138,1712957434667,-2629.09,0.00034999,2]
[322345139,1712957434677,-2629.09,0.00034999,2]
[322345140,1712957434686,-2455.97384705,0.00034999,2]
[322345141,1712957434699,-173.11615295,0.00034999,2]
[322345142,1712957434709,-2629.09,0.00034999,2]
[322345143,1712957434718,-2629.09,0.00034999,2]
[322345144,1712957434728,-2629.09,0.00034999,2]
[322345145,1712957434738,-2629.09,0.00034999,2]
[322345146,1712957434748,-2629.09,0.00034999,2]
[322345147,1712957434758,-2629.09,0.00034999,2]
[322345148,1712957434768,-2629.09,0.00034999,2]
[322345149,1712957434777,-2629.09,0.00034999,2]
[322345150,1712957434786,-2629.09,0.00034999,2]
[322345151,1712957434795,-2629.09,0.00034999,2]
[322345152,1712957434805,-2629.09,0.00034999,2]
[322345153,1712957434814,-2629.09,0.00034999,2]
[322345154,1712957434823,-2629.09,0.00034999,2]
[322345155,1712957434833,-2629.09,0.00034999,2]
[322345156,1712957434843,-2629.09,0.00034999,2]
[322345157,1712957434853,-2629.09,0.00034999,2]
[322345158,1712957434863,-2629.09,0.00034999,2]
[322345159,1712957434873,-2629.09,0.00034999,2]
[322345160,1712957434882,-2629.09,0.00034999,2]
[322345161,1712957434892,-2629.10938748,0.00034999,2]
[322345162,1712957434902,-600.0,0.00035,3]
[322345163,1712957434911,-714.96210186,0.00035069,4]
[322345164,1712957434921,-155.9196356,0.00035161,7]
[322345165,1712957434931,-152.26,0.00035225,2]
[322345166,1712957434940,-462.04,0.00035288,15]
[322345167,1712957434949,-2875.15,0.00035293,2]
[322345168,1712957434959,-546.0,0.00035342,2]
[322345169,1712957434969,-156.17870577,0.00035433,7]
[322345170,1712957434978,-6270.45245458,0.00035464,2]
[322345171,1712957434988,-152.58356749,0.00035531,7]
[322345172,1712957434997,-600.0,0.000356,120]
[322345173,1712957435006,-150.0,0.000356,19]
[322345174,1712957435016,-156.08349195,0.00035679,7]
[322345175,1712957435027,-154.98813121,0.00035728,7]
[322345176,1712957435038,-152.58356749,0.00035927,7]
[322345177,1712957435047,-153.89850043,0.00036096,7]
[322345178,1712957435058,-387.455,0.00036315,2]
[322345179,1712957435068,-2021.557,0.00036315,2]
[322345180,1712957435077,-354.0,0.00036315,2]
[322345181,1712957435087,-347.101,0.00036315,2]
[322345182,1712957435096,-166.753,0.00036315,2]
[322345183,1712957435105,-261.0,0.00036315,2]
[322345184,1712957435115,-460.0,0.00036315,2]
[322345185,1712957435125,-4799.0,0.00036315,2]
[322345186,1712957435136,-1053.0,0.00036315,2]
[322345187,1712957435146,-608.0,0.00036315,2]
[322345188,1712957435156,-280.0,0.00036315,2]
[322345189,1712957435166,-159.25,0.0003653,2]
[322345190,1712957435175,-546.0,0.00036575,7]
[322345191,1712957435185,-1000.0,0.00036684,2]
[322345192,1712957435194,-181.0,0.00036753,30]
[322345193,1712957435204,-153.55823556,0.00036753,14]
[322345194,1712957435272,-405.36504926,0.000369,2]
[322345195,1712957435281,-405.36504908,0.000369,2]
[322345196,1712957435291,-405.36504908,0.000369,2]
[322345197,1712957435300,-405.36504908,0.000369,2]
[322345198,1712957435309,-405.36504908,0.000369,2]
[322345199,1712957435318,-405.36504908,0.000369,2]
[322345200,1712957435327,-405.36504908,0.000369,2]
[322345201,1712957435337,-540.82,0.00036925,2]
[322345202,1712957435346,-152.58356749,0.00036983,7]
[322345203,1712957435356,-650.0,0.00037,3]
[322345204,1712957435365,-3000.0,0.00037,11]
[322345205,1712957435374,-998.92,0.00037,2]
[322345206,1712957435383,-311.06,0.00037,2]
[322345207,1712957435393,-3000.0,0.0003701,11]
[322345208,1712957435402,-2224.33193293,0.00037016,2]
[322345209,1712957435411,-3000.0,0.0003702,12]
[322345210,1712957435421,-3067.003607,0.0003703,12]
[322345211,1712957435430,-152.58356749,0.0003713,7]
[322345212,1712957435440,-152.58356749,0.0003721,7]
[322345213,1712957435449,-152.58356749,0.00037311,7]
[322345214,1712957435459,-405.36504908,0.00037345,2]
[322345215,1712957435469,-158.56529912,0.00037515,7]
[322345216,1712957435479,-155.9196356,0.00037541,7]
[322345217,1712957435489,-152.26,0.00037573,2]
[322345218,1712957435499,-152.6639887,0.00037621,7]
[322345219,1712957435509,-882.79,0.000377,3]
[322345220,1712957435520,-882.79,0.000377,3]
[322345221,1712957435530,-882.79,0.000377,3]
[322345222,1712957435539,-882.79,0.000377,3]
[322345223,1712957435548,-882.79,0.000377,3]
[322345224,1712957435557,-882.79,0.000377,3]
[322345225,1712957435566,-882.79,0.000377,3]
[322345226,1712957435576,-882.79,0.000377,3]
[322345227,1712957435586,-882.79,0.000377,3]
[322345228,1712957435595,-882.79,0.000377,3]
[322345229,1712957435604,-882.79,0.000377,3]
[322345230,1712957435614,-882.79,0.000377,3]
[322345231,1712957435624,-882.79,0.000377,3]
[322345232,1712957435633,-882.79,0.000377,3]
[322345233,1712957435642,-882.79,0.000377,3]
[322345234,1712957435653,-882.79,0.000377,3]
[322345235,1712957435666,-882.79,0.000377,3]
[322345236,1712957435675,-882.79,0.000377,3]
[322345237,1712957435685,-882.79,0.000377,3]
[322345238,1712957435695,-882.79,0.000377,3]
[322345239,1712957435705,-155.18,0.000377,3]
[322345240,1712957435715,-155.18,0.000377,3]
[322345241,1712957435724,-155.18,0.000377,3]
[322345242,1712957435734,-155.18,0.000377,3]
[322345243,1712957435743,-155.18,0.000377,3]
[322345244,1712957435753,-155.18,0.000377,3]
[322345245,1712957435763,-6270.45245458,0.00037703,2]
[322345246,1712957435773,-527.0,0.00037808,7]
[322345247,1712957435782,-914.0,0.00037812,5]
[322345248,1712957435792,-998.92,0.0003796,2]
[322345249,1712957435801,-462.04,0.00038027,15]
[322345250,1712957435811,-156.17870577,0.00038047,7]
[322345251,1712957435820,-173.07,0.00038094,2]
[322345252,1712957435830,-311.06,0.00038105,2]
[322345253,1712957435839,-405.36504908,0.00038265,2]
[322345254,1712957435849,-156.17870577,0.00038407,7]
[322345255,1712957435858,-152.6639887,0.00038814,7]
[322345256,1712957435868,-808.64432579,0.00038866,11]
[322345257,1712957435877,-316.48200968,0.00038866,2]
[322345258,1712957435886,-3296.21113327,0.00038868,12]
[322345259,1712957435896,-2250.78717727,0.000389,15]
[322345260,1712957435906,-1723.857658,0.000389,20]
[322345261,1712957435915,-998.92,0.0003892,2]
[322345262,1712957435925,-208.11,0.00038933,2]
[322345263,1712957435934,-151.15,0.00038957,2]
[322345264,1712957435943,-162.45533146,0.00038957,2]
[322345265,1712957435953,-151.15,0.00038958,2]
[322345266,1712957435962,-611.07740058,0.00038964,20]
[322345267,1712957435971,-208.18996497,0.00038964,4]
[322345268,1712957435981,-172.64538748,0.00038964,7]
[322345269,1712957435991,-2803.99739601,0.00038964,2]
[322345270,1712957436001,-188.48061016,0.00038965,4]
[322345271,1712957436022,-173.91631471,0.00038965,4]
[322345272,1712957436032,-835.28481848,0.00038965,2]
[322345273,1712957436042,-204.82350614,0.00038965,4]
[322345274,1712957436052,-4400.42776282,0.00038965,4]
[322345275,1712957436062,-487.68188735,0.00038966,4]
[322345276,1712957436072,-155.0,0.00038966,4]
[322345277,1712957436081,-103543.52610277,0.00038966,4]
[322345278,1712957436090,-5000.0,0.00038966,4]
[322345279,1712957436099,-15274.63761442,0.00038966,14]
[322345280,1712957436109,-2602.76416513,0.00038966,4]
[322345281,1712957436118,-239.07557141,0.00038967,2]
[322345282,1712957436128,-275830.78694956,0.00038967,4]
[322345283,1712957436137,-44680.4292273,0.00038968,4]
[322345284,1712957436166,-3002.23633276,0.00038968,4]
[322345285,1712957436178,-9063.21597719,0.00038968,4]
[322345289,1712957438268,-1428.2778223,0.00036315,2]
[322345291,1712957439192,-392.1321777,0.00036315,2]
[322345293,1712957439203,-78.60449175,0.00038968,4]
[322345295,1712957439217,-59605.94802837,0.00038968,4]
[322345297,1712957439227,-622.33056216,0.00038968,4]
[322345299,1712957439237,-632.25287615,0.00039,4]
[322345301,1712957439247,-700.0,0.00039,3]
[322345303,1712957439256,-527.0,0.00039041,7]
[322345305,1712957439267,-405.36504908,0.00039186,2]
[322345307,1712957439277,-540.82,0.00039189,2]
[322345309,1712957439287,-578.184645,0.0003921,2]
[322345311,1712957439296,-283.668,0.00039315,2]
[322345313,1712957439306,-3694.527,0.00039315,2]
[322345315,1712957439315,-267.708,0.00039315,2]
[322345317,1712957439324,-155.9196356,0.00039544,7]
[322345319,1712957439335,-153.76020684,0.00039545,7]
[322345321,1712957439344,-152.58356749,0.00039781,7]
[322345322,1712957439353,-999.240001,0.0003988,2]
[322345324,1712957439367,-181.99034006,0.00039897,4]
[322345326,1712957439377,-155.0,0.00039897,4]
[322345328,1712957439387,-155.2308273,0.00039897,4]
[322345330,1712957439396,-344.13732937,0.00039898,4]
[322345332,1712957439406,-156.80867088,0.00039899,4]
[322345334,1712957439415,-155.0,0.00039899,4]
[322345336,1712957439425,-2841.88178192,0.00039899,4]
[322345338,1712957439435,-16898.29816228,0.00039899,3]
[322345340,1712957439444,-152.58356749,0.00039917,7]
[322345342,1712957439454,-152.26,0.00039922,2]